Workbook

Sheet 4 класс
A2: Статистическая отчетность по результатам проведения школьного этапа всероссийской / республиканской олимпиады школьников 2017/2018 учебного года МБОУ «СОШ №___» ЕМР РТ
A3: по предмету английский язык
A4: 1. Сроки проведения:
A5: школьный этап
A6: 2.
A7: № п/п | B7: классы | C7: Общее количество обучающихся | E7: Количество участников на ШЭ | G7: Количество победителей | I7: Количество призёров | K7: Количество обучающихся, участвующих в двух и более олимпиадах | M7: Количество детей по комплектованию на 01.09.2017
C8: мальчиков | D8: девочек | E8: мальчиков | F8: девочек | G8: мальчиков | H8: девочек | I8: мальчиков | J8: девочек | K8: мальчиков | L8: девочек
A9: 1 | B9: СОШ №1 | C9: 32 | D9: 27 | E9: 2 | F9: 8 | G9: 0 | H9: 0 | I9: 0 | J9: 1 | M9: 59
A10: 2 | B10: СОШ №2 | C10: 44 | D10: 31 | E10: 1 | F10: 5 | G10: 0 | H10: 0 | I10: 0 | J10: 0 | M10: 75
A11: 3 | B11: СОШ №3 | C11: 21 | D11: 22 | E11: 0 | F11: 5 | G11: 0 | H11: 0 | I11: 0 | J11: 0 | M11: 43
A12: 4 | B12: гимназия №4 | C12: 33 | D12: 40 | E12: 16 | F12: 20 | G12: 2 | H12: 0 | I12: 0 | J12: 2 | K12: 1 | L12: 1 | M12: 73
A13: 5 | B13: СОШ №5 | C13: 16 | D13: 21 | E13: 2 | F13: 3 | G13: 0 | H13: 0 | I13: 0 | J13: 1 | M13: 37
A14: 6 | B14: СОШ №6 | C14: 41 | D14: 32 | E14: 4 | F14: 2 | G14: 0 | H14: 0 | I14: 1 | J14: 0 | M14: 73
A15: 7 | B15: СОШ №8 | C15: 40 | D15: 43 | E15: 5 | F15: 13 | G15: 0 | H15: 0 | I15: 0 | J15: 1 | K15: 0 | L15: 1 | M15: 83
A16: 8 | B16: СОШ №9 | C16: 64 | D16: 68 | E16: 1 | F16: 7 | G16: 0 | H16: 1 | I16: 0 | J16: 0 | M16: 132
A17: 9 | B17: СОШ №10 | C17: 120 | D17: 99 | E17: 10 | F17: 10 | G17: 1 | H17: 0 | I17: 0 | J17: 0 | K17: 4 | L17: 5 | M17: 219
A18: 10 | B18: ООШ№11 | C18: 2 | D18: 1 | E18: 1 | F18: 1 | H18: 1 | M18: 3
A19: 11 | B19: гимназия №1 | C19: 20 | D19: 19 | E19: 3 | F19: 4 | G19: 1 | H19: 0 | I19: 0 | J19: 0 | M19: 39
A20: 12 | B20: гимназия №2 | C20: 11 | D20: 9 | E20: 1 | F20: 2 | M20: 20
A21: 13 | B21: Бехтеревская СОШ | C21: 6 | D21: 2 | E21: 0 | F21: 0 | G21: 0 | H21: 0 | I21: 0 | J21: 0 | K21: 0 | L21: 0 | M21: 8
A22: 14 | B22: Б.Шурнякская СОШ | C22: 1 | D22: 2 | E22: 0 | F22: 0 | G22: 0 | H22: 0 | I22: 0 | J22: 0 | M22: 3
A23: 15 | B23: Костенеевская СОШ | C23: 2 | D23: 2 | E23: 1 | F23: 1 | G23: 0 | H23: 0 | I23: 0 | J23: 0 | M23: 4
A24: 16 | B24: Лекаревская СОШ | C24: 1 | D24: 6 | E24: 1 | F24: 6 | J24: 1 | M24: 7
A25: 17 | B25: Мортовская ООШ | C25: 6 | D25: 2 | E25: 1 | F25: 2 | M25: 8
A26: 18 | B26: Поспеловская СОШ | C26: 3 | D26: 2 | E26: 0 | F26: 1 | G26: 0 | H26: 1 | I26: 0 | J26: 0 | K26: 0 | L26: 0 | M26: 5
A27: 19 | B27: С.Куклюкская ООШ | D27: 1 | E27: 0 | F27: 0 | G27: 0 | H27: 0 | I27: 0 | J27: 0 | K27: 0 | L27: 1 | M27: 1
A28: 20 | B28: Ст.Юрашская СОШ | C28: 3 | D28: 4 | E28: 3 | F28: 4 | G28: 0 | H28: 0 | I28: 0 | J28: 0 | M28: 7
A29: 21 | B29: Танаевская СОШ | C29: 13 | D29: 14 | E29: 1 | F29: 1 | G29: 0 | H29: 0 | I29: 0 | J29: 0 | K29: 1 | L29: 1 | M29: 27
A30: 22 | B30: Яковлевская СОШ | C30: 1 | D30: 2 | E30: 1 | F30: 0 | G30: 0 | H30: 0 | I30: 0 | J30: 0 | M30: 3
A31: 23 | B31: ЕСВУ
C32: =SUM(C9:C31) -> 480 | D32: 449 | E32: 54 | F32: 95 | G32: 4 | H32: 3 | I32: 1 | J32: 6 | K32: 6 | L32: 9 | M32: 929

Sheet 5 класс
A2: Статистическая отчетность по результатам проведения школьного этапа всероссийской / республиканской олимпиады школьников 2017/2018 учебного года МБОУ «СОШ №___» ЕМР РТ
A3: по предмету английский язык
A4: 1. Сроки проведения:
A5: школьный этап
A6: 2.
A7: № п/п | B7: классы | C7: Общее количество обучающихся | E7: Количество участников на ШЭ | G7: Количество победителей | I7: Количество призёров | K7: Количество обучающихся, участвующих в двух и более олимпиадах | M7: Количество детей по комплектованию на 01.09.2017
C8: мальчиков | D8: девочек | E8: мальчиков | F8: девочек | G8: мальчиков | H8: девочек | I8: мальчиков | J8: девочек | K8: мальчиков | L8: девочек
A9: 1 | B9: СОШ №1 | C9: 23 | D9: 22 | E9: 2 | F9: 8 | G9: 0 | H9: 0 | I9: 1 | J9: 0 | M9: 45
A10: 2 | B10: СОШ №2 | C10: 36 | D10: 35 | E10: 7 | F10: 5 | G10: 0 | H10: 0 | I10: 0 | J10: 0 | M10: 71
A11: 3 | B11: СОШ №3 | C11: 23 | D11: 23 | E11: 1 | F11: 2 | G11: 1 | H11: 0 | I11: 0 | J11: 0 | M11: 46
A12: 4 | B12: гимназия №4 | C12: 18 | D12: 30 | E12: 10 | F12: 11 | G12: 1 | H12: 0 | I12: 0 | J12: 0 | M12: 48
A13: 5 | B13: СОШ №5 | C13: 17 | D13: 12 | E13: 3 | F13: 3 | G13: 0 | H13: 0 | I13: 0 | J13: 1 | M13: 29
A14: 6 | B14: СОШ №6 | C14: 28 | D14: 34 | E14: 2 | F14: 6 | G14: 0 | H14: 0 | I14: 0 | J14: 1 | M14: 62
A15: 7 | B15: СОШ №8 | C15: 45 | D15: 46 | E15: 3 | F15: 9 | G15: 0 | H15: 0 | I15: 1 | J15: 0 | K15: 2 | L15: 2 | M15: 91
A16: 8 | B16: СОШ №9 | C16: 52 | D16: 53 | E16: 5 | F16: 12 | G16: 1 | H16: 0 | I16: 0 | J16: 1 | M16: 105
A17: 9 | B17: СОШ №10 | C17: 104 | D17: 81 | E17: 0 | F17: 4 | G17: 0 | H17: 1 | I17: 0 | J17: 0 | K17: 4 | L17: 5 | M17: 185
A18: 10 | B18: ООШ№11 | C18: 2 | D18: 2 | E18: 2 | F18: 2 | H18: 1 | M18: 4
A19: 11 | B19: гимназия №1 | C19: 20 | D19: 15 | E19: 8 | F19: 12 | G19: 1 | H19: 0 | I19: 0 | J19: 1 | M19: 35
A20: 12 | B20: гимназия №2 | C20: 7 | D20: 11 | E20: 1 | F20: 2 | J20: 1 | M20: 18
A21: 13 | B21: Бехтеревская СОШ | C21: 7 | D21: 1 | E21: 1 | F21: 0 | G21: 0 | H21: 0 | I21: 0 | J21: 0 | K21: 1 | L21: 0 | M21: 8
A22: 14 | B22: Б.Шурнякская СОШ | C22: 3 | D22: 2 | E22: 0 | F22: 0 | G22: 0 | H22: 0 | I22: 0 | J22: 0 | M22: 5
A23: 15 | B23: Костенеевская СОШ | C23: 5 | D23: 2 | E23: 4 | F23: 2 | G23: 0 | H23: 0 | I23: 0 | J23: 0 | M23: 7
A24: 16 | B24: Лекаревская СОШ | C24: 2 | D24: 1 | E24: 2 | F24: 1 | G24: 0 | H24: 0 | I24: 0 | J24: 0 | M24: 3
A25: 17 | B25: Мортовская ООШ | C25: 2 | D25: 1 | E25: 2 | F25: 1 | M25: 3
A26: 18 | B26: Поспеловская СОШ | C26: 4 | D26: 1 | E26: 1 | F26: 0 | G26: 1 | H26: 0 | I26: 0 | J26: 0 | M26: 5
A27: 19 | B27: С.Куклюкская ООШ | M27: 0
A28: 20 | B28: Ст.Юрашская СОШ | C28: 1 | D28: 6 | E28: 0 | F28: 3 | G28: 0 | H28: 0 | I28: 0 | J28: 0 | M28: 7
A29: 21 | B29: Танаевская СОШ | C29: 19 | D29: 8 | E29: 3 | F29: 0 | G29: 0 | H29: 0 | I29: 0 | J29: 0 | K29: 3 | L29: 0 | M29: 27
A30: 22 | B30: Яковлевская СОШ | C30: 0 | D30: 4 | E30: 0 | F30: 1 | G30: 0 | H30: 0 | I30: 0 | J30: 0 | M30: 4
A31: 23 | B31: ЕСВУ
C32: =SUM(C9:C31) -> 418 | D32: 390 | E32: 57 | F32: 84 | G32: 5 | H32: 2 | I32: 2 | J32: 5 | K32: 10 | L32: 7 | M32: 808

Sheet 6 класс
A2: Статистическая отчетность по результатам проведения школьного этапа всероссийской / республиканской олимпиады школьников 2017/2018 учебного года МБОУ «СОШ №___» ЕМР РТ
A3: по предмету английский язык
A4: 1. Сроки проведения:
A5: школьный этап
A6: 2.
A7: № п/п | B7: классы | C7: Общее количество обучающихся | E7: Количество участников на ШЭ | G7: Количество победителей | I7: Количество призёров | K7: Количество обучающихся, участвующих в двух и более олимпиадах | M7: Количество детей по комплектованию на 01.09.2017
C8: мальчиков | D8: девочек | E8: мальчиков | F8: девочек | G8: мальчиков | H8: девочек | I8: мальчиков | J8: девочек | K8: мальчиков | L8: девочек
A9: 1 | B9: СОШ №1 | C9: 16 | D9: 20 | E9: 3 | F9: 7 | G9: 0 | H9: 0 | I9: 1 | J9: 0 | M9: 36
A10: 2 | B10: СОШ №2 | C10: 48 | D10: 27 | E10: 3 | F10: 5 | G10: 0 | H10: 0 | I10: 0 | J10: 0 | M10: 75
A11: 3 | B11: СОШ №3 | C11: 40 | D11: 28 | E11: 2 | F11: 1 | G11: 0 | H11: 0 | I11: 0 | J11: 0 | M11: 68
A12: 4 | B12: гимназия №4 | C12: 25 | D12: 29 | E12: 8 | F12: 5 | G12: 1 | H12: 1 | I12: 2 | J12: 3 | K12: 1 | L12: 1 | M12: 54
A13: 5 | B13: СОШ №5 | C13: 15 | D13: 14 | E13: 2 | F13: 4 | G13: 0 | H13: 0 | I13: 1 | J13: 0 | M13: 29
A14: 6 | B14: СОШ №6 | C14: 32 | D14: 33 | E14: 1 | F14: 4 | G14: 0 | H14: 0 | I14: 1 | J14: 0 | M14: 65
A15: 7 | B15: СОШ №8 | C15: 33 | D15: 29 | E15: 3 | F15: 7 | G15: 0 | H15: 0 | I15: 1 | J15: 0 | K15: 3 | L15: 3 | M15: 62
A16: 8 | B16: СОШ №9 | C16: 59 | D16: 62 | E16: 5 | F16: 3 | G16: 0 | H16: 1 | I16: 0 | J16: 1 | M16: 121
A17: 9 | B17: СОШ №10 | C17: 83 | D17: 69 | E17: 9 | F17: 11 | G17: 0 | H17: 1 | I17: 1 | J17: 0 | K17: 3 | L17: 3 | M17: 152
A18: 10 | B18: ООШ№11 | C18: 1 | D18: 6 | E18: 1 | F18: 6 | H18: 1 | J18: 2 | M18: 7
A19: 11 | B19: гимназия №1 | C19: 11 | D19: 15 | E19: 2 | F19: 3 | G19: 0 | H19: 1 | I19: 0 | J19: 0 | M19: 26
A20: 12 | B20: гимназия №2 | C20: 11 | D20: 17 | E20: 2 | F20: 1 | M20: 28
A21: 13 | B21: Бехтеревская СОШ | C21: 4 | D21: 2 | E21: 0 | F21: 1 | G21: 0 | H21: 0 | I21: 0 | J21: 0 | K21: 0 | L21: 1 | M21: 6
A22: 14 | B22: Б.Шурнякская СОШ | C22: 1 | D22: 0 | E22: 0 | F22: 0 | G22: 0 | H22: 0 | I22: 0 | J22: 0 | M22: 1
A23: 15 | B23: Костенеевская СОШ | C23: 4 | D23: 4 | E23: 2 | F23: 2 | G23: 0 | H23: 0 | I23: 0 | J23: 0 | M23: 8
A24: 16 | B24: Лекаревская СОШ | C24: 2 | D24: 3 | E24: 2 | F24: 3 | G24: 0 | H24: 0 | I24: 0 | J24: 0 | M24: 5
A25: 17 | B25: Мортовская ООШ | C25: 8 | D25: 2 | E25: 2 | F25: 2 | M25: 10
A26: 18 | B26: Поспеловская СОШ | C26: 5 | D26: 5 | E26: 0 | F26: 2 | G26: 0 | H26: 1 | I26: 0 | J26: 1 | M26: 10
A27: 19 | B27: С.Куклюкская ООШ | M27: 0
A28: 20 | B28: Ст.Юрашская СОШ | C28: 2 | D28: 4 | E28: 0 | F28: 1 | G28: 0 | H28: 0 | I28: 0 | J28: 0 | M28: 6
A29: 21 | B29: Танаевская СОШ | C29: 10 | D29: 4 | E29: 3 | F29: 0 | G29: 1 | H29: 0 | I29: 0 | J29: 0 | K29: 3 | L29: 0 | M29: 14
A30: 22 | B30: Яковлевская СОШ | C30: 0 | D30: 2 | E30: 0 | F30: 1 | G30: 0 | H30: 0 | I30: 0 | J30: 0 | M30: 2
A31: 23 | B31: ЕСВУ
C32: =SUM(C9:C31) -> 410 | D32: 375 | E32: 50 | F32: 69 | G32: 2 | H32: 6 | I32: 7 | J32: 7 | K32: 10 | L32: 8 | M32: 785

Sheet 7 класс
A2: Статистическая отчетность по результатам проведения школьного этапа всероссийской / республиканской олимпиады школьников 2017/2018 учебного года МБОУ «СОШ №___» ЕМР РТ
A3: по предмету английский язык
A4: 1. Сроки проведения:
A5: школьный этап
A6: 2.
A7: № п/п | B7: классы | C7: Общее количество обучающихся | E7: Количество участников на ШЭ | G7: Количество победителей | I7: Количество призёров | K7: Количество обучающихся, участвующих в двух и более олимпиадах | M7: Количество детей по комплектованию на 01.09.2017
C8: мальчиков | D8: девочек | E8: мальчиков | F8: девочек | G8: мальчиков | H8: девочек | I8: мальчиков | J8: девочек | K8: мальчиков | L8: девочек
A9: 1 | B9: СОШ №1 | C9: 26 | D9: 32 | E9: 5 | F9: 5 | G9: 0 | H9: 0 | I9: 1 | J9: 0 | M9: 58
A10: 2 | B10: СОШ №2 | C10: 28 | D10: 32 | E10: 5 | F10: 3 | G10: 0 | H10: 0 | I10: 0 | J10: 0 | M10: 60
A11: 3 | B11: СОШ №3 | C11: 40 | D11: 28 | E11: 2 | F11: 2 | G11: 0 | H11: 0 | I11: 0 | J11: 0 | M11: 68
A12: 4 | B12: гимназия №4 | C12: 33 | D12: 40 | E12: 25 | F12: 34 | G12: 1 | H12: 0 | I12: 0 | J12: 1 | M12: 73
A13: 5 | B13: СОШ №5 | C13: 19 | D13: 21 | E13: 3 | F13: 7 | G13: 0 | H13: 0 | I13: 0 | J13: 1 | M13: 40
A14: 6 | B14: СОШ №6 | C14: 29 | D14: 35 | E14: 3 | F14: 3 | G14: 0 | H14: 0 | I14: 0 | J14: 1 | M14: 64
A15: 7 | B15: СОШ №8 | C15: 32 | D15: 20 | E15: 2 | F15: 3 | G15: 0 | H15: 0 | I15: 0 | J15: 0 | K15: 1 | L15: 1 | M15: 52
A16: 8 | B16: СОШ №9 | C16: 84 | D16: 50 | E16: 6 | F16: 4 | G16: 1 | H16: 0 | I16: 0 | J16: 0 | M16: 134
A17: 9 | B17: СОШ №10 | C17: 88 | D17: 83 | E17: 1 | F17: 2 | G17: 0 | H17: 1 | I17: 0 | J17: 0 | K17: 5 | L17: 5 | M17: 171
A18: 10 | B18: ООШ№11 | C18: 1 | D18: 1 | E18: 1 | G18: 1 | M18: 2
A19: 11 | B19: гимназия №1 | C19: 19 | D19: 15 | E19: 9 | F19: 11 | G19: 0 | H19: 1 | I19: 1 | J19: 0 | M19: 34
A20: 12 | B20: гимназия №2 | C20: 21 | D20: 16 | E20: 3 | F20: 0 | I20: 1 | M20: 37
A21: 13 | B21: Бехтеревская СОШ | C21: 3 | D21: 2 | E21: 1 | F21: 0 | G21: 0 | H21: 0 | I21: 0 | J21: 0 | K21: 1 | L21: 0 | M21: 5
A22: 14 | B22: Б.Шурнякская СОШ | C22: 4 | D22: 1 | E22: 2 | F22: 0 | G22: 0 | H22: 0 | I22: 0 | J22: 0 | M22: 5
A23: 15 | B23: Костенеевская СОШ | C23: 6 | D23: 1 | E23: 3 | F23: 0 | G23: 0 | H23: 0 | I23: 0 | J23: 0 | M23: 7
A24: 16 | B24: Лекаревская СОШ | C24: 4 | D24: 1 | E24: 4 | F24: 1 | J24: 1 | M24: 5
A25: 17 | B25: Мортовская ООШ | C25: 1 | D25: 2 | E25: 1 | F25: 1 | H25: 1 | L25: 1 | M25: 3
A26: 18 | B26: Поспеловская СОШ | C26: 3 | D26: 3 | E26: 0 | F26: 1 | G26: 0 | H26: 1 | I26: 0 | J26: 0 | M26: 6
A27: 19 | B27: С.Куклюкская ООШ | M27: 0
A28: 20 | B28: Ст.Юрашская СОШ | C28: 3 | D28: 0 | E28: 2 | F28: 0 | G28: 0 | H28: 0 | I28: 0 | J28: 0 | K28: 0 | L28: 0 | M28: 3
A29: 21 | B29: Танаевская СОШ | C29: 7 | D29: 13 | E29: 0 | F29: 2 | G29: 0 | H29: 0 | I29: 0 | J29: 0 | K29: 2 | L29: 0 | M29: 20
A30: 22 | B30: Яковлевская СОШ | C30: 2 | D30: 3 | E30: 1 | F30: 0 | G30: 0 | H30: 0 | I30: 0 | J30: 0 | M30: 5
A31: 23 | B31: ЕСВУ
C32: =SUM(C9:C31) -> 453 | D32: 399 | E32: 79 | F32: 79 | G32: 3 | H32: 4 | I32: 3 | J32: 4 | K32: 9 | L32: 7 | M32: 852

Sheet 8 класс
A2: Статистическая отчетность по результатам проведения школьного этапа всероссийской / республиканской олимпиады школьников 2017/2018 учебного года МБОУ «СОШ №___» ЕМР РТ
A3: по предмету английский язык
A4: 1. Сроки проведения:
A5: школьный этап
A6: 2.
A7: № п/п | B7: классы | C7: Общее количество обучающихся | E7: Количество участников на ШЭ | G7: Количество победителей | I7: Количество призёров | K7: Количество обучающихся, участвующих в двух и более олимпиадах | M7: Количество детей по комплектованию на 01.09.2017
C8: мальчиков | D8: девочек | E8: мальчиков | F8: девочек | G8: мальчиков | H8: девочек | I8: мальчиков | J8: девочек | K8: мальчиков | L8: девочек
A9: 1 | B9: СОШ №1 | C9: 18 | D9: 22 | E9: 0 | F9: 10 | G9: 0 | H9: 0 | I9: 0 | J9: 1 | M9: 40
A10: 2 | B10: СОШ №2 | C10: 39 | D10: 29 | E10: 5 | F10: 4 | G10: 0 | H10: 0 | I10: 0 | J10: 0 | M10: 68
A11: 3 | B11: СОШ №3 | C11: 30 | D11: 23 | E11: 1 | F11: 2 | G11: 1 | H11: 0 | I11: 0 | J11: 0 | M11: 53
A12: 4 | B12: гимназия №4 | C12: 18 | D12: 23 | E12: 8 | F12: 10 | G12: 1 | H12: 0 | I12: 1 | J12: 1 | M12: 41
A13: 5 | B13: СОШ №5 | C13: 21 | D13: 15 | E13: 5 | F13: 5 | G13: 0 | H13: 0 | I13: 1 | J13: 0 | M13: 36
A14: 6 | B14: СОШ №6 | C14: 34 | D14: 32 | E14: 0 | F14: 4 | G14: 0 | H14: 0 | I14: 0 | J14: 1 | M14: 66
A15: 7 | B15: СОШ №8 | C15: 50 | D15: 47 | E15: 3 | F15: 8 | G15: 0 | H15: 0 | I15: 1 | J15: 0 | K15: 2 | L15: 2 | M15: 97
A16: 8 | B16: СОШ №9 | C16: 39 | D16: 60 | E16: 1 | F16: 9 | G16: 0 | H16: 1 | I16: 0 | J16: 0 | M16: 99
A17: 9 | B17: СОШ №10 | C17: 91 | D17: 93 | E17: 4 | F17: 16 | G17: 0 | H17: 1 | I17: 0 | J17: 1 | K17: 3 | L17: 6 | M17: 184
A18: 10 | B18: ООШ№11 | C18: 1 | D18: 1 | E18: 1 | F18: 1 | G18: 1 | J18: 1 | M18: 2
A19: 11 | B19: гимназия №1 | C19: 17 | D19: 15 | E19: 1 | F19: 4 | G19: 0 | H19: 1 | I19: 0 | J19: 0 | M19: 32
A20: 12 | B20: гимназия №2 | C20: 8 | D20: 6 | E20: 0 | F20: 2 | M20: 14
A21: 13 | B21: Бехтеревская СОШ | C21: 4 | D21: 4 | E21: 0 | F21: 3 | G21: 0 | H21: 0 | I21: 0 | J21: 0 | K21: 0 | L21: 3 | M21: 8
A22: 14 | B22: Б.Шурнякская СОШ | C22: 5 | D22: 6 | E22: 2 | F22: 3 | G22: 0 | H22: 0 | I22: 0 | J22: 0 | M22: 11
A23: 15 | B23: Костенеевская СОШ | C23: 1 | D23: 2 | E23: 1 | F23: 2 | G23: 0 | H23: 0 | I23: 0 | J23: 0 | M23: 3
A24: 16 | B24: Лекаревская СОШ | C24: 5 | D24: 2 | E24: 5 | F24: 2 | G24: 0 | H24: 0 | I24: 0 | J24: 0 | K24: 1 | M24: 7
A25: 17 | B25: Мортовская ООШ | C25: 6 | D25: 3 | F25: 3 | H25: 1 | L25: 1 | M25: 9
A26: 18 | B26: Поспеловская СОШ | C26: 1 | D26: 5 | E26: 0 | F26: 1 | G26: 0 | H26: 1 | I26: 0 | J26: 0 | M26: 6
A27: 19 | B27: С.Куклюкская ООШ | C27: 1 | D27: 2 | E27: 1 | F27: 1 | G27: 0 | H27: 0 | I27: 0 | J27: 0 | K27: 1 | L27: 1 | M27: 3
A28: 20 | B28: Ст.Юрашская СОШ | C28: 4 | D28: 1 | E28: 0 | F28: 1 | G28: 0 | H28: 0 | I28: 0 | J28: 0 | M28: 5
A29: 21 | B29: Танаевская СОШ | C29: 8 | D29: 7 | E29: 1 | F29: 0 | G29: 0 | H29: 0 | I29: 0 | J29: 0 | K29: 1 | L29: 0 | M29: 15
A30: 22 | B30: Яковлевская СОШ | C30: 0 | D30: 3 | E30: 0 | F30: 1 | G30: 0 | H30: 0 | I30: 0 | J30: 1 | M30: 3
A31: 23 | B31: ЕСВУ
C32: =SUM(C9:C31) -> 401 | D32: 401 | E32: 39 | F32: 92 | G32: 3 | H32: 5 | I32: 3 | J32: 6 | K32: 8 | L32: 13 | M32: 802

Sheet 9 класс
A2: Статистическая отчетность по результатам проведения школьного этапа всероссийской / республиканской олимпиады школьников 2017/2018 учебного года МБОУ «СОШ №___» ЕМР РТ
A3: по предмету английский язык
A4: 1. Сроки проведения:
A5: школьный этап
A6: 2.
A7: № п/п | B7: классы | C7: Общее количество обучающихся | E7: Количество участников на ШЭ | G7: Количество победителей | I7: Количество призёров | K7: Количество обучающихся, участвующих в двух и более олимпиадах | M7: Количество детей по комплектованию на 01.09.2017
C8: мальчиков | D8: девочек | E8: мальчиков | F8: девочек | G8: мальчиков | H8: девочек | I8: мальчиков | J8: девочек | K8: мальчиков | L8: девочек
A9: 1 | B9: СОШ №1 | C9: 21 | D9: 26 | E9: 1 | F9: 9 | G9: 0 | H9: 0 | I9: 0 | J9: 1 | M9: 47
A10: 2 | B10: СОШ №2 | C10: 24 | D10: 30 | E10: 1 | F10: 2 | G10: 0 | H10: 0 | I10: 0 | J10: 0 | M10: 54
A11: 3 | B11: СОШ №3 | C11: 23 | D11: 35 | E11: 1 | F11: 2 | G11: 0 | H11: 0 | I11: 0 | J11: 0 | M11: 58
A12: 4 | B12: гимназия №4 | C12: 29 | D12: 41 | E12: 7 | F12: 6 | G12: 0 | H12: 0 | I12: 1 | J12: 1 | M12: 70
A13: 5 | B13: СОШ №5 | C13: 10 | D13: 11 | E13: 0 | F13: 3 | G13: 0 | H13: 0 | I13: 0 | J13: 1 | M13: 21
A14: 6 | B14: СОШ №6 | C14: 37 | D14: 31 | E14: 2 | F14: 2 | G14: 0 | H14: 0 | I14: 0 | J14: 1 | M14: 68
A15: 7 | B15: СОШ №8 | C15: 48 | D15: 56 | E15: 1 | F15: 10 | G15: 0 | H15: 0 | I15: 0 | J15: 1 | M15: 104
A16: 8 | B16: СОШ №9 | C16: 51 | D16: 55 | E16: 7 | F16: 13 | G16: 1 | H16: 0 | I16: 1 | J16: 0 | M16: 106
A17: 9 | B17: СОШ №10 | C17: 75 | D17: 86 | E17: 2 | F17: 6 | G17: 0 | H17: 1 | I17: 0 | J17: 0 | M17: 161
A18: 10 | B18: ООШ№11 | D18: 1 | F18: 1 | H18: 1 | M18: 1
A19: 11 | B19: гимназия №1 | C19: 15 | D19: 17 | E19: 1 | F19: 1 | G19: 0 | H19: 0 | I19: 0 | J19: 0 | M19: 32
A20: 12 | B20: гимназия №2 | C20: 6 | D20: 7 | E20: 2 | F20: 0 | M20: 13
A21: 13 | B21: Бехтеревская СОШ | C21: 5 | D21: 3 | E21: 0 | F21: 1 | G21: 0 | H21: 0 | I21: 0 | J21: 0 | M21: 8
A22: 14 | B22: Б.Шурнякская СОШ | C22: 5 | D22: 2 | E22: 0 | F22: 0 | G22: 0 | H22: 0 | I22: 0 | J22: 0 | M22: 7
A23: 15 | B23: Костенеевская СОШ | C23: 4 | D23: 4 | E23: 2 | F23: 2 | G23: 0 | H23: 0 | I23: 0 | J23: 0 | M23: 8
A24: 16 | B24: Лекаревская СОШ | C24: 1 | D24: 3 | E24: 1 | F24: 3 | G24: 0 | H24: 0 | I24: 0 | J24: 0 | M24: 4
A25: 17 | B25: Мортовская ООШ | C25: 3 | D25: 3 | E25: 2 | F25: 2 | J25: 1 | M25: 6
A26: 18 | B26: Поспеловская СОШ | C26: 5 | D26: 3 | E26: 0 | F26: 1 | G26: 0 | H26: 1 | I26: 0 | J26: 0 | M26: 8
A27: 19 | B27: С.Куклюкская ООШ | C27: 2 | D27: 2 | E27: 0 | F27: 0 | G27: 0 | H27: 0 | I27: 0 | J27: 0 | M27: 4
A28: 20 | B28: Ст.Юрашская СОШ | C28: 3 | D28: 7 | E28: 3 | F28: 1 | G28: 0 | H28: 0 | I28: 0 | J28: 0 | M28: 10
A29: 21 | B29: Танаевская СОШ | C29: 12 | D29: 12 | E29: 3 | F29: 1 | G29: 0 | H29: 0 | I29: 0 | J29: 0 | M29: 24
A30: 22 | B30: Яковлевская СОШ | C30: 8 | D30: 4 | E30: 1 | F30: 0 | G30: 0 | H30: 0 | I30: 0 | J30: 0 | M30: 12
A31: 23 | B31: ЕСВУ | C31: 50 | D31: 0 | E31: 19 | F31: 0 | G31: 1 | H31: 0 | I31: 1 | J31: 0 | M31: 50
C32: =SUM(C9:C31) -> 437 | D32: 439 | E32: 56 | F32: 66 | G32: 2 | H32: 3 | I32: 3 | J32: 6 | K32: 0 | L32: 0 | M32: 876

Sheet 10 класс
A2: Статистическая отчетность по результатам проведения школьного этапа всероссийской / республиканской олимпиады школьников 2017/2018 учебного года МБОУ «СОШ №___» ЕМР РТ
A3: по предмету английский язык
A4: 1. Сроки проведения:
A5: школьный этап
A6: 2.
A7: № п/п | B7: классы | C7: Общее количество обучающихся | E7: Количество участников на ШЭ | G7: Количество победителей | I7: Количество призёров | K7: Количество обучающихся, участвующих в двух и более олимпиадах | M7: Количество детей по комплектованию на 01.09.2017
C8: мальчиков | D8: девочек | E8: мальчиков | F8: девочек | G8: мальчиков | H8: девочек | I8: мальчиков | J8: девочек | K8: мальчиков | L8: девочек
A9: 1 | B9: СОШ №1 | C9: 5 | D9: 16 | E9: 2 | F9: 8 | G9: 0 | H9: 0 | I9: 1 | J9: 1 | M9: 21
A10: 2 | B10: СОШ №2 | C10: 9 | D10: 8 | E10: 1 | F10: 1 | G10: 0 | H10: 0 | I10: 0 | J10: 0 | M10: 17
A11: 3 | B11: СОШ №3 | C11: 11 | D11: 10 | E11: 0 | F11: 3 | G11: 0 | H11: 0 | I11: 0 | J11: 0 | M11: 21
A12: 4 | B12: гимназия №4 | C12: 7 | D12: 20 | E12: 2 | F12: 3 | G12: 0 | H12: 1 | I12: 0 | J12: 0 | M12: 27
A13: 5 | B13: СОШ №5 | C13: 10 | D13: 4 | E13: 2 | F13: 0 | G13: 0 | H13: 0 | I13: 0 | J13: 0 | M13: 14
A14: 6 | B14: СОШ №6 | C14: 8 | D14: 16 | E14: 1 | F14: 2 | G14: 0 | H14: 1 | I14: 1 | J14: 0 | M14: 24
A15: 7 | B15: СОШ №8 | C15: 10 | D15: 13 | E15: 1 | F15: 9 | G15: 0 | H15: 0 | I15: 0 | J15: 1 | K15: 3 | L15: 3 | M15: 23
A16: 8 | B16: СОШ №9 | C16: 26 | D16: 39 | E16: 3 | F16: 5 | G16: 0 | H16: 1 | I16: 1 | J16: 0 | M16: 65
A17: 9 | B17: СОШ №10 | C17: 35 | D17: 39 | E17: 0 | F17: 2 | G17: 0 | H17: 1 | I17: 0 | J17: 0 | K17: 5 | L17: 6 | M17: 74
A18: 10 | B18: ООШ№11 | M18: 0
A19: 11 | B19: гимназия №1 | C19: 2 | D19: 4 | E19: 0 | F19: 0 | G19: 0 | H19: 0 | I19: 0 | J19: 0 | M19: 6
A20: 12 | B20: гимназия №2 | C20: 2 | D20: 8 | E20: 1 | F20: 1 | J20: 1 | M20: 10
A21: 13 | B21: Бехтеревская СОШ | C21: 3 | D21: 1 | E21: 1 | F21: 1 | G21: 0 | H21: 0 | I21: 0 | J21: 0 | K21: 1 | L21: 1 | M21: 4
A22: 14 | B22: Б.Шурнякская СОШ | C22: 2 | D22: 1 | E22: 0 | F22: 1 | G22: 0 | H22: 0 | I22: 0 | J22: 0 | M22: 3
A23: 15 | B23: Костенеевская СОШ | C23: 0 | D23: 3 | E23: 0 | F23: 1 | G23: 0 | H23: 0 | I23: 0 | J23: 1 | M23: 3
A24: 16 | B24: Лекаревская СОШ | C24: 2 | D24: 2 | E24: 2 | F24: 2 | G24: 0 | H24: 0 | I24: 0 | J24: 0 | M24: 4
A25: 17 | B25: Мортовская ООШ | M25: 0
A26: 18 | B26: Поспеловская СОШ | C26: 2 | D26: 1 | E26: 2 | F26: 1 | G26: 0 | H26: 0 | I26: 0 | J26: 0 | M26: 3
A27: 19 | B27: С.Куклюкская ООШ | M27: 0
A28: 20 | B28: Ст.Юрашская СОШ | C28: 0 | D28: 2 | E28: 0 | F28: 0 | G28: 0 | H28: 0 | I28: 0 | J28: 0 | K28: 0 | L28: 0 | M28: 2
A29: 21 | B29: Танаевская СОШ | C29: 3 | D29: 7 | E29: 1 | F29: 1 | G29: 0 | H29: 0 | I29: 0 | J29: 0 | K29: 1 | L29: 1 | M29: 10
A30: 22 | B30: Яковлевская СОШ | M30: 0
A31: 23 | B31: ЕСВУ | C31: 49 | D31: 0 | E31: 20 | F31: 0 | G31: 1 | H31: 0 | I31: 1 | J31: 0 | K31: 17 | L31: 0 | M31: 49
C32: =SUM(C9:C31) -> 186 | D32: 194 | E32: 39 | F32: 41 | G32: 1 | H32: 4 | I32: 4 | J32: 4 | M32: =SUM(M9:M31) -> 380

Sheet 11 класс
A2: Статистическая отчетность по результатам проведения школьного этапа всероссийской / республиканской олимпиады школьников 2017/2018 учебного года МБОУ «СОШ №___» ЕМР РТ
A3: по предмету английский язык
A4: 1. Сроки проведения:
A5: школьный этап
A6: 2.
A7: № п/п | B7: классы | C7: Общее количество обучающихся | E7: Количество участников на ШЭ | G7: Количество победителей | I7: Количество призёров | K7: Количество обучающихся, участвующих в двух и более олимпиадах | M7: Количество детей по комплектованию на 01.09.2017
C8: мальчиков | D8: девочек | E8: мальчиков | F8: девочек | G8: мальчиков | H8: девочек | I8: мальчиков | J8: девочек | K8: мальчиков | L8: девочек
A9: 1 | B9: СОШ №1 | C9: 4 | D9: 4 | E9: 0 | F9: 2 | G9: 0 | H9: 0 | I9: 0 | J9: 0 | M9: 8
A10: 2 | B10: СОШ №2 | C10: 9 | D10: 15 | E10: 4 | F10: 3 | G10: 0 | H10: 1 | I10: 2 | J10: 0 | K10: 1 | L10: 0 | M10: 24
A11: 3 | B11: СОШ №3 | C11: 16 | D11: 11 | E11: 2 | F11: 3 | G11: 0 | H11: 0 | I11: 0 | J11: 0 | M11: 27
A12: 4 | B12: гимназия №4 | C12: 7 | D12: 23 | E12: 1 | F12: 2 | G12: 0 | H12: 1 | I12: 0 | J12: 0 | M12: 30
A13: 5 | B13: СОШ №5 | C13: 0 | D13: 0 | E13: 0 | F13: 0 | G13: 0 | H13: 0 | I13: 0 | J13: 0 | M13: 0
A14: 6 | B14: СОШ №6 | C14: 6 | D14: 15 | E14: 0 | F14: 2 | G14: 0 | H14: 1 | I14: 0 | J14: 0 | M14: 21
A15: 7 | B15: СОШ №8 | C15: 16 | D15: 26 | E15: 0 | F15: 6 | G15: 0 | H15: 0 | I15: 0 | J15: 0 | K15: 5 | M15: 42
A16: 8 | B16: СОШ №9 | C16: 24 | D16: 36 | E16: 1 | F16: 4 | G16: 1 | H16: 0 | I16: 0 | J16: 0 | M16: 60
A17: 9 | B17: СОШ №10 | C17: 31 | D17: 55 | E17: 0 | F17: 3 | G17: 0 | H17: 1 | I17: 0 | J17: 0 | K17: 4 | L17: 3 | M17: 86
A18: 10 | B18: ООШ№11 | M18: 0
A19: 11 | B19: гимназия №1 | C19: 4 | D19: 9 | E19: 2 | F19: 3 | G19: 0 | H19: 1 | I19: 0 | J19: 0 | M19: 13
A20: 12 | B20: гимназия №2 | C20: 5 | D20: 8 | E20: 1 | F20: 1 | M20: 13
A21: 13 | B21: Бехтеревская СОШ | C21: 2 | D21: 1 | E21: 0 | F21: 0 | G21: 0 | H21: 0 | I21: 0 | J21: 0 | K21: 0 | L21: 0 | M21: 3
A22: 14 | B22: Б.Шурнякская СОШ | C22: 0 | D22: 0 | E22: 0 | F22: 0 | G22: 0 | H22: 0 | I22: 0 | J22: 0 | M22: 0
A23: 15 | B23: Костенеевская СОШ | C23: 4 | D23: 4 | E23: 1 | F23: 1 | G23: 0 | H23: 0 | I23: 0 | J23: 0 | M23: 8
A24: 16 | B24: Лекаревская СОШ | C24: 1 | D24: 2 | E24: 1 | F24: 2 | G24: 0 | H24: 0 | I24: 0 | J24: 0 | M24: 3
A25: 17 | B25: Мортовская ООШ | M25: 0
A26: 18 | B26: Поспеловская СОШ | C26: 5 | D26: 4 | E26: 2 | F26: 3 | G26: 0 | H26: 0 | I26: 0 | J26: 0 | M26: 9
A27: 19 | B27: С.Куклюкская ООШ | M27: 0
A28: 20 | B28: Ст.Юрашская СОШ | C28: 3 | D28: 2 | E28: 0 | F28: 2 | G28: 0 | H28: 0 | I28: 0 | J28: 0 | K28: 0 | L28: 0 | M28: 5
A29: 21 | B29: Танаевская СОШ | C29: 5 | D29: 6 | E29: 1 | F29: 1 | G29: 0 | H29: 1 | I29: 0 | J29: 0 | K29: 1 | L29: 1 | M29: 11
A30: 22 | B30: Яковлевская СОШ | M30: 0
A31: 23 | B31: ЕСВУ | C31: 36 | D31: 0 | E31: 11 | F31: 0 | G31: 0 | H31: 0 | I31: 0 | J31: 0 | K31: 10 | L31: 0 | M31: 36
C32: =SUM(C9:C31) -> 178 | D32: 221 | E32: 27 | F32: 38 | G32: 1 | H32: 6 | I32: 2 | J32: 0 | K32: =SUM(K9:K31) -> 21 | L32: =SUM(L9:L31) -> 4 | M32: =SUM(M9:M31) -> 399

Sheet Свод 4-11 классы
A2: Статистическая отчетность по результатам проведения школьного этапа всероссийской / республиканской олимпиады школьников 2019/2020 учебного года МБОУ «Лекаревская СОШ» ЕМР РТ
A3: по предмету: РУССКИЙ ЯЗЫК
A4: 1. Сроки проведения: 08.10.2018г.
A5: школьный этап
A6: 2.
A7: № п/п | B7: Классы | C7: Общее количество обучающихся | E7: Количество участников на ШЭ | G7: Количество победителей | I7: Количество призеров | K7: Количество обучающихся, участвовавших в двух и более олимпиадах
C9: мальчиков | D9: девочек | E9: мальчиков | F9: девочек | G9: мальчиков | H9: девочек | I9: мальчиков | J9: девочек | K9: мальчиков | L9: девочек
A10: 1. | B10: 4-е | C10: 3 | D10: 1 | E10: 3 | F10: 1 | I10: 1
A11: 2. | B11: 5-е | C11: 0 | D11: 0 | E11: 0 | F11: 0
A12: 3. | B12: 6-е | C12: 1 | D12: 7 | E12: 1 | F12: 7 | G12: 0 | H12: 0 | I12: 0 | J12: 1 | K12: 1 | L12: 7
A13: 4. | B13: 7-е | C13: 2 | D13: 1 | E13: 1 | F13: 1 | J13: 1 | L13: 1
A14: 5. | B14: 8-е | C14: 2 | D14: 3 | E14: 1 | F14: 2 | I14: 1 | J14: 1 | K14: 1 | L14: 2
A15: 6. | B15: 9-е | C15: 6 | D15: 1 | E15: 6 | F15: 1 | G15: 0 | H15: 0 | I15: 0 | J15: 1 | K15: 6 | L15: 1
A16: 7. | B16: 10-е | C16: 3 | D16: 3 | E16: 3 | F16: 3 | G16: 0 | H16: 0 | I16: 0 | J16: 1 | K16: 3 | L16: 3
A17: 8. | B17: 11-е | C17: 1 | D17: 2 | E17: 1 | F17: 2 | G17: 0 | H17: 0 | I17: 0 | J17: 1 | K17: 1 | L17: 2
B18: ИТОГО: | C18: 18 | D18: 18 | E18: 16 | F18: 17 | G18: 0 | H18: 0 | I18: 2 | J18: 6 | K18: 10 | L18: 16

Sheet заявка-4класс
B1: Список учащихся 4 класса на участие в муниципальном этапе республиканской олимпиады школьников в 2019-2020 году по русскому языку
A2: № п/п | B2: ОО | C2: Ф.И.О. ученика (полностью) | E2: Дата рождения | G2: Класс | I2: Домашний адрес, телефон участника | K2: Статус участника победитель/ призер | M2: Количество баллов, набранных по результатам школьного этапа | O2: Ф.И.О, должность учителя
A3: 1 | B3: МБОУ "Лекаревская СОШ" ЕМР РТ | C3: Гилязев Максим Витальевич | E3: 25.02.2009 г. | G3: 4 | I3: с.Большие Армалы, ул.Правленческая, д.26, кв.2 | K3: призёр | M3: 24 | O3: Хайрова Айгуль Равилевна, учитель начальных классов
A4: 2
A5: 3
A6: 4
A7: 5
A8: 6
A9: 7
A10: 8
A11: 9
A12: 10
A13: 11
A14: 12

Sheet заявка-5-6 класс
B1: Список учащихся 5-6 классов на участие в муниципальном этапе республиканской олимпиады школьников в 2019-2020 году по русскому языку
A2: № п/п | B2: ОО | C2: Ф.И.О. ученика (полностью) | E2: Дата рождения | G2: Класс | I2: Домашний адрес, телефон участника | K2: Статус участника победитель/ призер | M2: Количество баллов, набранных по результатам школьного этапа | O2: Ф.И.О, должность учителя
A3: 1 | B3: МБОУ "Лекаревская СОШ" | C3: Хачатрян Карина Гришевна | E3: 2008-04-28 | G3: 6 | I3: с.Большие Армалы, ул. Центральная, д.26 | K3: призёр | M3: 25 | O3: Хачатрян И.И., учитель русского языка и литературы
A4: 2
A5: 3
A6: 4
A7: 5
A8: 6
A9: 7
A10: 8
A11: 9
A12: 10
A13: 11
A14: 12
A15: 13
A16: 14
A17: 15
A18: 16
A19: 17
A20: 18
A21: 19
A22: 20
A23: 21
A24: 22
A25: 23
A26: 24
A27: 25
A28: 26

Sheet заявка-7-8 класс
B1: Список учащихся 7-8 класса на участие в муниципальном этапе республиканской олимпиады школьников в 2019-2020 году по русскому языку
A2: № п/п | B2: ОО | C2: Ф.И.О. ученика (полностью) | E2: Дата рождения | G2: Класс | I2: Домашний адрес, телефон участника | K2: Статус участника победитель/ призер | M2: Количество баллов, набранных по результатам школьного этапа | O2: Ф.И.О, должность учителя
A3: 1
A4: 2 | B4: МБОУ "Лекаревская СОШ" | C4: Тухватуллина Аделина Радиковна | E4: 30.05.2005 г. | G4: 8 | I4: с.Лекарево, ул.Сельсоветская, д.16 | K4: призёр | M4: 27 | O4: Мухамедьянова Л.И., учитель русского языка и литературы
A5: 3 | B5: МБОУ "Лекаревская СОШ" | C5: Харисов Надир Ильдарович | E5: 02.08.2005 г. | G5: 8 | I5: д.Большие Армалы, ул.Центральная, д.29, кв.1 | K5: призёр | M5: 25 | O5: Мухамедьянова Л.И., учитель русского языка и литературы
A6: 4 | B6: МБОУ "Лекаревская СОШ" | C6: Тухватуллина Карина Радиковна | E6: 10.07.2006 г. | G6: 7 | I6: с.Лекарево, ул.Сельсоветская, д.16 | K6: призёр | M6: 25 | O6: Мухамедьянова Л.И., учитель русского языка и литературы
A7: 5
A8: 6
A9: 7
A10: 8
A11: 9
A12: 10
A13: 11
A14: 12
A15: 13
A16: 14
A17: 15
A18: 16
A19: 17
A20: 18
A21: 19
A22: 20
A23: 21
A24: 22
A25: 23
A26: 24
A27: 25

Sheet заявка-9-11 класс
B1: Список учащихся 9-11 классов на участие в муниципальном этапе республиканской олимпиады школьников в 2019-2020 году по русскому языку
A2: № п/п | B2: ОО | C2: Ф.И.О. ученика (полностью) | E2: Дата рождения | G2: Класс | I2: Домашний адрес, телефон участника | K2: Статус участника победитель/ призер | M2: Количество баллов, набранных по результатам школьного этапа | O2: Ф.И.О, должность учителя
A3: 1 | B3: МБОУ "Лекаревская СОШ" | C3: Балобанова Рамиля Ринатовна | E3: 2004-12-23 | G3: 9 | I3: п.Малоречинский, ул. Лесная, д.9 | K3: призёр | M3: 29 | O3: Хачатрян И.И., учитель русского языка и литературы
A4: 2 | B4: МБОУ "Лекаревская СОШ" | C4: Сергеева Лейла Александровна | E4: 19.05.2003 г. | G4: 10 | I4: с.Морты | K4: призёр | M4: 40 | O4: Хачатрян И.И., учитель русского языка и литературы
A5: 3 | B5: МБОУ "Лекаревская СОШ" | C5: Нурбаева Альбина Ринатовна | E5: 2002-08-25 | G5: 11 | I5: п.Малоречинский, ул. Лесная, д.9, тел. 89274617408 | K5: призёр | M5: 43 | O5: Хачатрян И.И., учитель русского языка и литературы
A6: 4
A7: 5
A8: 6
A9: 8
A10: 9
A11: 10
A12: 11
A13: 12
A14: 13
A15: 14
A16: 15
A17: 16
A18: 17
A19: 18
A20: 19
A21: 20
A22: 21
A23: 22
A24: 23
A25: 24
A26: 25
A27: 26
A28: 27
A29: 28
A30: 29
A31: 30
A32: 31
